[Event "Late-Titled-Tuesday-Blitz-September-19-2023"]
[Site "Chess.com"]
[Date "2023.09.19"]
[Round "3"]
[White "KVAIDAN"]
[Black "Quattroporte300"]
[Result "1-0"]
[WhiteElo "2255"]
[BlackElo "2401"]
[TimeControl "180+1"]
[EndTime "14:26:21 PDT"]
[Termination "KVAIDAN won on time"]

1. f4 {[%clk 0:03:00]} 1... c5 {[%clk 0:02:56.9]} 2. Nf3 {[%clk 0:02:56.8]} 2...
Nc6 {[%clk 0:02:57.2]} 3. d3 {[%clk 0:02:57]} 3... d5 {[%clk 0:02:56.5]} 4. e3
{[%clk 0:02:56.7]} 4... g6 {[%clk 0:02:55.7]} 5. Be2 {[%clk 0:02:57.6]} 5... Bg7
{[%clk 0:02:56.2]} 6. O-O {[%clk 0:02:58.5]} 6... Nf6 {[%clk 0:02:55.8]} 7. Kh1
{[%clk 0:02:59]} 7... O-O {[%clk 0:02:56.3]} 8. a4 {[%clk 0:02:59.4]} 8... Qc7
{[%clk 0:02:54.5]} 9. Nc3 {[%clk 0:02:59.3]} 9... e5 {[%clk 0:02:51.9]} 10. Nb5
{[%clk 0:02:59.7]} 10... Qb8 {[%clk 0:02:51.4]} 11. fxe5 {[%clk 0:03:00.1]}
11... Nxe5 {[%clk 0:02:51.3]} 12. Nxe5 {[%clk 0:03:01]} 12... Qxe5 {[%clk
0:02:51.2]} 13. e4 {[%clk 0:03:01.9]} 13... g5 {[%clk 0:01:43.9]} 14. c3 {[%clk
0:03:00.3]} 14... a6 {[%clk 0:01:38.7]} 15. d4 {[%clk 0:03:00.5]} 15... Qxe4
{[%clk 0:01:35.2]} 16. Nc7 {[%clk 0:02:59.3]} 16... Rb8 {[%clk 0:01:28.3]} 17.
Bxg5 {[%clk 0:02:59.8]} 17... Qg6 {[%clk 0:01:13.3]} 18. Bxf6 {[%clk 0:02:49.2]}
18... Bxf6 {[%clk 0:01:13.2]} 19. Nxd5 {[%clk 0:02:49.3]} 19... Bd8 {[%clk
0:01:12]} 20. dxc5 {[%clk 0:02:46.4]} 20... Be6 {[%clk 0:01:04]} 21. Nf4 {[%clk
0:02:46.3]} 21... Qh6 {[%clk 0:00:58.9]} 22. Nxe6 {[%clk 0:02:45.7]} 22... Qxe6
{[%clk 0:00:55.8]} 23. b4 {[%clk 0:02:44.4]} 23... Bc7 {[%clk 0:00:53.3]} 24.
Bd3 {[%clk 0:02:24.4]} 24... Rbd8 {[%clk 0:00:37.1]} 25. Qf3 {[%clk 0:02:18.6]}
25... Qh6 {[%clk 0:00:24.9]} 26. g3 {[%clk 0:02:13.8]} 26... f6 {[%clk
0:00:21.2]} 27. Bc4+ {[%clk 0:02:13.5]} 27... Kh8 {[%clk 0:00:21.4]} 28. Rad1
{[%clk 0:02:12.6]} 28... Be5 {[%clk 0:00:17.8]} 29. Rd5 {[%clk 0:02:07.2]} 29...
Rg8 {[%clk 0:00:13.6]} 30. Rxe5 {[%clk 0:02:02.5]} 30... fxe5 {[%clk 0:00:13.4]}
31. Bxg8 {[%clk 0:02:03]} 31... Rxg8 {[%clk 0:00:11.1]} 32. Qf6+ {[%clk
0:02:03.1]} 32... Qxf6 {[%clk 0:00:11.2]} 33. Rxf6 {[%clk 0:02:03.7]} 33... Re8
{[%clk 0:00:10]} 34. Kg2 {[%clk 0:02:03.4]} 34... Kg7 {[%clk 0:00:10.2]} 35. Rb6
{[%clk 0:02:03]} 35... Re7 {[%clk 0:00:09.8]} 36. Kf3 {[%clk 0:02:03.6]} 36...
h5 {[%clk 0:00:06.8]} 37. Ke4 {[%clk 0:02:03.7]} 37... Kf7 {[%clk 0:00:07]} 38.
Rh6 {[%clk 0:02:00.4]} 38... Kg7 {[%clk 0:00:04.6]} 39. Rxh5 {[%clk 0:02:00.4]}
39... Kf6 {[%clk 0:00:04.6]} 40. Rf5+ {[%clk 0:02:00.7]} 40... Kg6 {[%clk
0:00:05]} 41. Rxe5 {[%clk 0:02:00.9]} 41... Rh7 {[%clk 0:00:05]} 42. h4 {[%clk
0:02:00.8]} 42... Rd7 {[%clk 0:00:05.8]} 43. g4 {[%clk 0:02:00]} 43... Rd2
{[%clk 0:00:05.1]} 44. Re6+ {[%clk 0:02:00.2]} 44... Kf7 {[%clk 0:00:04.9]} 45.
Rb6 {[%clk 0:02:00.5]} 45... Rg2 {[%clk 0:00:04.2]} 46. g5 {[%clk 0:01:59.6]}
46... Rg4+ {[%clk 0:00:03.8]} 47. Kf5 {[%clk 0:02:00.1]} 47... Rxh4 {[%clk
0:00:04.2]} 48. Rxb7+ {[%clk 0:02:01]} 48... Kg8 {[%clk 0:00:04.1]} 49. g6
{[%clk 0:02:01.4]} 49... Rh3 {[%clk 0:00:02.6]} 50. c4 {[%clk 0:01:59.5]} 50...
Rf3+ {[%clk 0:00:02]} 51. Ke4 {[%clk 0:01:57.1]} 51... Rg3 {[%clk 0:00:02.3]}
52. g7 {[%clk 0:01:57.2]} 52... Rg4+ {[%clk 0:00:02.7]} 53. Kd5 {[%clk
0:01:57.3]} 53... Rg5+ {[%clk 0:00:02.7]} 54. Kc6 {[%clk 0:01:57.4]} 54... Rg6+
{[%clk 0:00:03.3]} 55. Kc7 {[%clk 0:01:56.5]} 55... Rxg7+ {[%clk 0:00:03.6]} 56.
Kb6 {[%clk 0:01:57.4]} 56... Rg4 {[%clk 0:00:03.2]} 57. c6 {[%clk 0:01:56.4]}
57... Rxc4 {[%clk 0:00:03.6]} 58. b5 {[%clk 0:01:57]} 58... axb5 {[%clk
0:00:02.4]} 59. axb5 {[%clk 0:01:57.7]} 59... Kf8 {[%clk 0:00:02.8]} 60. Rd7
{[%clk 0:01:56.9]} 60... Ke8 {[%clk 0:00:03.1]} 61. Rd1 {[%clk 0:01:57.1]} 61...
Rb4 {[%clk 0:00:01.1]} 62. c7 {[%clk 0:01:57.1]} 1-0

[Event "Late-Titled-Tuesday-Blitz-September-19-2023"]
[Site "Chess.com"]
[Date "2023.09.19"]
[Round "3"]
[White "Jospem"]
[Black "sergeikim"]
[Result "1/2-1/2"]
[WhiteElo "3056"]
[BlackElo "2606"]
[TimeControl "180+1"]
[EndTime "14:26:22 PDT"]
[Termination "Game drawn by repetition"]

1. e4 {[%clk 0:03:00.9]} 1... e5 {[%clk 0:02:59.9]} 2. Nf3 {[%clk 0:03:01]} 2...
Nc6 {[%clk 0:03:00.3]} 3. Nc3 {[%clk 0:03:01.8]} 3... Nf6 {[%clk 0:02:59.4]} 4.
h3 {[%clk 0:03:02.6]} 4... g6 {[%clk 0:02:58.8]} 5. Bc4 {[%clk 0:03:02.5]} 5...
Bg7 {[%clk 0:02:58.3]} 6. d3 {[%clk 0:03:02.7]} 6... O-O {[%clk 0:02:57.7]} 7.
Be3 {[%clk 0:03:03.1]} 7... d6 {[%clk 0:02:57.6]} 8. a3 {[%clk 0:03:03.7]} 8...
Be6 {[%clk 0:02:54.5]} 9. Bxe6 {[%clk 0:03:03.9]} 9... fxe6 {[%clk 0:02:54.6]}
10. Ne2 {[%clk 0:03:04.8]} 10... Nh5 {[%clk 0:02:52.1]} 11. O-O {[%clk
0:03:04.9]} 11... Rxf3 {[%clk 0:02:44.4]} 12. gxf3 {[%clk 0:03:05.4]} 12... Qh4
{[%clk 0:02:44.4]} 13. Kg2 {[%clk 0:03:00.8]} 13... Rf8 {[%clk 0:02:39.7]} 14.
Qd2 {[%clk 0:03:00.2]} 14... Nf4+ {[%clk 0:02:22.2]} 15. Bxf4 {[%clk 0:02:59.1]}
15... exf4 {[%clk 0:02:21.7]} 16. d4 {[%clk 0:02:57.2]} 16... g5 {[%clk
0:02:09.8]} 17. Rh1 {[%clk 0:02:43.1]} 17... Ne7 {[%clk 0:02:08.5]} 18. Rag1
{[%clk 0:02:42.5]} 18... Qh5 {[%clk 0:02:06.7]} 19. Qd3 {[%clk 0:02:39.2]} 19...
Ng6 {[%clk 0:02:04.6]} 20. Kf1 {[%clk 0:02:39.8]} 20... Nh4 {[%clk 0:02:04.8]}
21. Rg4 {[%clk 0:02:40.6]} 21... h6 {[%clk 0:02:03.5]} 22. Rhg1 {[%clk
0:02:39.5]} 22... Kh7 {[%clk 0:01:58.3]} 23. Ke1 {[%clk 0:02:29.3]} 23... Kh8
{[%clk 0:01:56]} 24. Kd1 {[%clk 0:02:29.7]} 24... b6 {[%clk 0:01:51.9]} 25. Kc1
{[%clk 0:02:28.9]} 25... Ng6 {[%clk 0:01:50.1]} 26. Rh1 {[%clk 0:02:26.2]} 26...
Nh4 {[%clk 0:01:49.8]} 27. Kb1 {[%clk 0:02:24.8]} 27... a5 {[%clk 0:01:47.2]}
28. Ka1 {[%clk 0:02:17.8]} 28... Rf7 {[%clk 0:01:44.6]} 29. Qb5 {[%clk
0:02:08.3]} 29... Nxf3 {[%clk 0:01:29.2]} 30. Nxf4 {[%clk 0:02:04.7]} 30... Rxf4
{[%clk 0:01:12.3]} 31. Rxf4 {[%clk 0:02:05]} 31... Nxd4 {[%clk 0:01:11.2]} 32.
Rf8+ {[%clk 0:01:49.6]} 32... Bxf8 {[%clk 0:01:09.7]} 33. Qc4 {[%clk 0:01:50.5]}
33... Bg7 {[%clk 0:01:08.2]} 34. Qxc7 {[%clk 0:01:41.5]} 34... Qe2 {[%clk
0:01:01]} 35. Kb1 {[%clk 0:01:31.7]} 35... Qxe4 {[%clk 0:00:55.8]} 36. Rc1
{[%clk 0:01:32.1]} 36... Qe5 {[%clk 0:00:43]} 37. Qxb6 {[%clk 0:01:28.8]} 37...
Ne2 {[%clk 0:00:37.7]} 38. Rd1 {[%clk 0:01:21.9]} 38... d5 {[%clk 0:00:36.1]}
39. Rd3 {[%clk 0:01:13.1]} 39... Nf4 {[%clk 0:00:32.1]} 40. Rb3 {[%clk 0:01:06]}
40... Qe1+ {[%clk 0:00:26.3]} 41. Ka2 {[%clk 0:01:06.3]} 41... Ne2 {[%clk
0:00:25.9]} 42. Re3 {[%clk 0:00:56]} 42... Nc1+ {[%clk 0:00:23.4]} 43. Kb1
{[%clk 0:00:56.5]} 43... Ne2+ {[%clk 0:00:21.7]} 44. Ka2 {[%clk 0:00:57]} 44...
Nc1+ {[%clk 0:00:21]} 45. Kb1 {[%clk 0:00:57.5]} 45... Ne2+ {[%clk 0:00:20.5]}
46. Ka2 {[%clk 0:00:50.8]} 1/2-1/2

[Event "Late-Titled-Tuesday-Blitz-September-19-2023"]
[Site "Chess.com"]
[Date "2023.09.19"]
[Round "3"]
[White "WilliamAlfaroCaracas"]
[Black "FrenchMonster2002"]
[Result "0-1"]
[WhiteElo "2277"]
[BlackElo "2474"]
[TimeControl "180+1"]
[EndTime "14:26:22 PDT"]
[Termination "FrenchMonster2002 won by checkmate"]

1. e4 {[%clk 0:02:57.4]} 1... g6 {[%clk 0:02:55.8]} 2. d4 {[%clk 0:02:57.3]}
2... Bg7 {[%clk 0:02:56.1]} 3. f3 {[%clk 0:02:55.7]} 3... d6 {[%clk 0:02:52.3]}
4. Be3 {[%clk 0:02:55.9]} 4... c5 {[%clk 0:02:50.5]} 5. dxc5 {[%clk 0:02:51.4]}
5... Bxb2 {[%clk 0:02:47.2]} 6. Bd4 {[%clk 0:02:36.2]} 6... Qa5+ {[%clk
0:02:38.3]} 7. Kf2 {[%clk 0:02:21.4]} 7... Bxd4+ {[%clk 0:02:20.6]} 8. Qxd4
{[%clk 0:02:20]} 8... Qxc5 {[%clk 0:02:21.5]} 9. c3 {[%clk 0:02:10.4]} 9... Nc6
{[%clk 0:02:19.6]} 10. Qxc5 {[%clk 0:02:09]} 10... dxc5 {[%clk 0:02:20.5]} 11.
Bb5 {[%clk 0:02:05.7]} 11... Bd7 {[%clk 0:02:20.7]} 12. Ne2 {[%clk 0:02:04.4]}
12... a6 {[%clk 0:02:17.5]} 13. Bxc6 {[%clk 0:02:01.4]} 13... Bxc6 {[%clk
0:02:17.8]} 14. c4 {[%clk 0:01:54.8]} 14... e6 {[%clk 0:02:13.3]} 15. Nbc3
{[%clk 0:01:53.7]} 15... Nf6 {[%clk 0:02:10.4]} 16. a4 {[%clk 0:01:52.2]} 16...
Nd7 {[%clk 0:02:08.4]} 17. Nd1 {[%clk 0:01:37.8]} 17... Ne5 {[%clk 0:02:06.8]}
18. Ne3 {[%clk 0:01:36.7]} 18... O-O-O {[%clk 0:02:06.9]} 19. Rhd1 {[%clk
0:01:32.6]} 19... Rxd1 {[%clk 0:02:02.7]} 20. Nxd1 {[%clk 0:01:17.2]} 20... Nxc4
{[%clk 0:02:02.6]} 21. Rc1 {[%clk 0:01:12.6]} 21... Ne5 {[%clk 0:02:01]} 22. Nb2
{[%clk 0:01:06.7]} 22... Rd8 {[%clk 0:01:45.8]} 23. Rxc5 {[%clk 0:01:04]} 23...
Nd3+ {[%clk 0:01:46]} 24. Nxd3 {[%clk 0:01:03.4]} 24... Rxd3 {[%clk 0:01:46.9]}
25. Nc1 {[%clk 0:00:40.2]} 25... Rd2+ {[%clk 0:01:40.6]} 26. Kg3 {[%clk
0:00:39.8]} 26... Kd7 {[%clk 0:01:32.6]} 27. a5 {[%clk 0:00:40]} 27... Bb5
{[%clk 0:01:21.6]} 28. Nb3 {[%clk 0:00:32.5]} 28... Rb2 {[%clk 0:01:12.3]} 29.
Rc3 {[%clk 0:00:19.6]} 29... Bf1 {[%clk 0:01:06.8]} 30. Nc5+ {[%clk 0:00:20.2]}
30... Ke7 {[%clk 0:01:07.1]} 31. Kf4 {[%clk 0:00:15.4]} 31... Bxg2 {[%clk
0:01:04.8]} 32. Na4 {[%clk 0:00:09.1]} 32... Rb5 {[%clk 0:00:59.2]} 33. Rc7+
{[%clk 0:00:08.8]} 33... Kf6 {[%clk 0:00:58.9]} 34. Nc5 {[%clk 0:00:07.1]} 34...
g5+ {[%clk 0:00:56.3]} 35. Kg3 {[%clk 0:00:06.8]} 35... Bf1 {[%clk 0:00:56]} 36.
Nxb7 {[%clk 0:00:06.9]} 36... Rb2 {[%clk 0:00:48.6]} 37. Nd6 {[%clk 0:00:05.4]}
37... Rg2+ {[%clk 0:00:46.2]} 38. Kh3 {[%clk 0:00:01.8]} 38... Rg1# {[%clk
0:00:46.6]} 0-1

[Event "Late-Titled-Tuesday-Blitz-September-19-2023"]
[Site "Chess.com"]
[Date "2023.09.19"]
[Round "3"]
[White "nihalsarin"]
[Black "bazar-wokzal"]
[Result "1-0"]
[WhiteElo "3098"]
[BlackElo "2644"]
[TimeControl "180+1"]
[EndTime "14:26:28 PDT"]
[Termination "nihalsarin won by resignation"]

1. Nf3 {[%clk 0:02:56]} 1... c5 {[%clk 0:02:59.9]} 2. b3 {[%clk 0:02:56.3]} 2...
d5 {[%clk 0:02:59.2]} 3. e3 {[%clk 0:02:56.1]} 3... a6 {[%clk 0:02:58.8]} 4. Bb2
{[%clk 0:02:55.9]} 4... Nc6 {[%clk 0:02:58.9]} 5. d4 {[%clk 0:02:55.8]} 5... Bg4
{[%clk 0:02:54.8]} 6. dxc5 {[%clk 0:02:53.9]} 6... e5 {[%clk 0:02:50.7]} 7. Nbd2
{[%clk 0:02:53.5]} 7... Bxc5 {[%clk 0:02:49.2]} 8. h3 {[%clk 0:02:54.1]} 8...
Bxf3 {[%clk 0:02:48]} 9. Nxf3 {[%clk 0:02:55]} 9... f6 {[%clk 0:02:46.2]} 10.
Be2 {[%clk 0:02:54.8]} 10... Nge7 {[%clk 0:02:46]} 11. O-O {[%clk 0:02:55.5]}
11... O-O {[%clk 0:02:45.8]} 12. a3 {[%clk 0:02:56.2]} 12... Kh8 {[%clk
0:02:39.1]} 13. b4 {[%clk 0:02:55.9]} 13... Bb6 {[%clk 0:02:38.4]} 14. c4 {[%clk
0:02:56.8]} 14... dxc4 {[%clk 0:02:34.6]} 15. Qc2 {[%clk 0:02:57.5]} 15... Rc8
{[%clk 0:02:30.6]} 16. Rfd1 {[%clk 0:02:58.2]} 16... Qc7 {[%clk 0:02:29.4]} 17.
Qxc4 {[%clk 0:02:58.6]} 17... Rfd8 {[%clk 0:02:21.8]} 18. Qg4 {[%clk 0:02:55.1]}
18... Rxd1+ {[%clk 0:02:18.4]} 19. Rxd1 {[%clk 0:02:56]} 19... Rd8 {[%clk
0:02:18.5]} 20. Rc1 {[%clk 0:02:55]} 20... Qd7 {[%clk 0:02:17.5]} 21. Qxd7
{[%clk 0:02:53.3]} 21... Rxd7 {[%clk 0:02:17.4]} 22. Kf1 {[%clk 0:02:54.2]}
22... Kg8 {[%clk 0:02:16.1]} 23. Ke1 {[%clk 0:02:54.1]} 23... Kf8 {[%clk
0:02:15.2]} 24. Nd2 {[%clk 0:02:54.9]} 24... Nd5 {[%clk 0:02:06.4]} 25. g4
{[%clk 0:02:51]} 25... Kf7 {[%clk 0:02:05.9]} 26. Ne4 {[%clk 0:02:50.6]} 26...
Ke7 {[%clk 0:02:02.7]} 27. Bxa6 {[%clk 0:02:46.3]} 27... Ncxb4 {[%clk
0:01:50.7]} 28. Bb5 {[%clk 0:02:47]} 28... Nc6 {[%clk 0:01:44.2]} 29. Bxc6
{[%clk 0:02:47.7]} 29... bxc6 {[%clk 0:01:44.4]} 30. Rxc6 {[%clk 0:02:48.6]}
30... Rb7 {[%clk 0:01:40.2]} 31. Rc2 {[%clk 0:02:48.6]} 31... g6 {[%clk
0:01:34.1]} 32. Ke2 {[%clk 0:02:47.7]} 32... f5 {[%clk 0:01:31.4]} 33. gxf5
{[%clk 0:02:48.1]} 33... gxf5 {[%clk 0:01:31.5]} 34. Ng3 {[%clk 0:02:48.9]}
34... Ke6 {[%clk 0:01:28.8]} 35. Rc6+ {[%clk 0:02:47]} 35... Kd7 {[%clk
0:01:28.5]} 36. Rh6 {[%clk 0:02:47.6]} 36... Bc7 {[%clk 0:01:28.5]} 37. Rxh7+
{[%clk 0:02:45.3]} 37... Kc6 {[%clk 0:01:27.7]} 38. Ba1 {[%clk 0:02:44.3]} 38...
Rb1 {[%clk 0:01:25.6]} 39. Rxc7+ {[%clk 0:02:36.6]} 39... Nxc7 {[%clk
0:01:20.3]} 40. Bxe5 {[%clk 0:02:37.5]} 40... Rb3 {[%clk 0:01:16.6]} 41. Nxf5
{[%clk 0:02:36.6]} 41... Rxa3 {[%clk 0:01:11.5]} 42. Nd4+ {[%clk 0:02:36.4]}
42... Kd7 {[%clk 0:01:11]} 43. Bxc7 {[%clk 0:02:35.5]} 43... Ra2+ {[%clk
0:01:10.9]} 44. Kf3 {[%clk 0:02:36.3]} 44... Kxc7 {[%clk 0:01:11.4]} 45. h4
{[%clk 0:02:33]} 45... Kd6 {[%clk 0:01:11.7]} 46. e4 {[%clk 0:02:13.7]} 46...
Ke5 {[%clk 0:01:09.3]} 47. Nc6+ {[%clk 0:02:14.3]} 47... Kf6 {[%clk 0:01:00]}
48. Ke3 {[%clk 0:02:14.1]} 48... Ra1 {[%clk 0:00:55.9]} 49. Kf4 {[%clk
0:02:04.5]} 49... Rh1 {[%clk 0:00:51.7]} 50. e5+ {[%clk 0:02:05]} 50... Kg6
{[%clk 0:00:49.1]} 51. Ne7+ {[%clk 0:02:03.7]} 51... Kf7 {[%clk 0:00:38.5]} 52.
Nf5 {[%clk 0:02:04.6]} 52... Rh2 {[%clk 0:00:35.9]} 53. f3 {[%clk 0:02:03.6]}
53... Rh1 {[%clk 0:00:33.8]} 54. Kg4 {[%clk 0:01:48.6]} 54... Rg1+ {[%clk
0:00:33.1]} 55. Ng3 {[%clk 0:01:48.6]} 55... Ke6 {[%clk 0:00:29.2]} 56. f4
{[%clk 0:01:49.5]} 56... Rg2 {[%clk 0:00:28.3]} 57. h5 {[%clk 0:01:49.8]} 57...
Rg1 {[%clk 0:00:26]} 58. h6 {[%clk 0:01:48.5]} 58... Kf7 {[%clk 0:00:18.1]} 59.
f5 {[%clk 0:01:49]} 59... Re1 {[%clk 0:00:17.4]} 60. Kf4 {[%clk 0:01:41.2]}
60... Kg8 {[%clk 0:00:17.2]} 61. e6 {[%clk 0:01:39.9]} 61... Kh7 {[%clk
0:00:17.1]} 62. Ne4 {[%clk 0:01:40.6]} 62... Kxh6 {[%clk 0:00:17.1]} 63. e7
{[%clk 0:01:40.7]} 1-0

[Event "Late-Titled-Tuesday-Blitz-September-19-2023"]
[Site "Chess.com"]
[Date "2023.09.19"]
[Round "3"]
[White "SaqoChess_Twitch"]
[Black "SergioMoralesG"]
[Result "1-0"]
[WhiteElo "2670"]
[BlackElo "2426"]
[TimeControl "180+1"]
[EndTime "14:26:29 PDT"]
[Termination "SaqoChess_Twitch won by resignation"]

1. d4 {[%clk 0:03:00.9]} 1... d5 {[%clk 0:02:59.7]} 2. c4 {[%clk 0:03:01.3]}
2... c6 {[%clk 0:03:00]} 3. Nc3 {[%clk 0:03:01.8]} 3... Nf6 {[%clk 0:03:00.1]}
4. e3 {[%clk 0:03:02.4]} 4... Bf5 {[%clk 0:02:58.5]} 5. cxd5 {[%clk 0:03:02.1]}
5... Nxd5 {[%clk 0:02:55.9]} 6. Bc4 {[%clk 0:03:01.7]} 6... e6 {[%clk
0:02:52.9]} 7. Nge2 {[%clk 0:03:02.2]} 7... Bg6 {[%clk 0:02:49.2]} 8. O-O {[%clk
0:03:02]} 8... Be7 {[%clk 0:02:48.4]} 9. e4 {[%clk 0:03:01.6]} 9... Nxc3 {[%clk
0:02:43.6]} 10. Nxc3 {[%clk 0:02:59.7]} 10... O-O {[%clk 0:02:42]} 11. f4 {[%clk
0:02:59.8]} 11... b5 {[%clk 0:02:35.6]} 12. Bb3 {[%clk 0:02:50.8]} 12... b4
{[%clk 0:02:29.5]} 13. f5 {[%clk 0:02:47.5]} 13... bxc3 {[%clk 0:02:23.8]} 14.
fxg6 {[%clk 0:02:47.9]} 14... hxg6 {[%clk 0:02:22.6]} 15. bxc3 {[%clk
0:02:47.9]} 15... Nd7 {[%clk 0:02:16.2]} 16. Be3 {[%clk 0:02:38.8]} 16... Nf6
{[%clk 0:02:13.2]} 17. Qc2 {[%clk 0:02:34.9]} 17... c5 {[%clk 0:02:07.8]} 18.
Rad1 {[%clk 0:02:18.1]} 18... cxd4 {[%clk 0:02:06.8]} 19. cxd4 {[%clk 0:02:19]}
19... Rc8 {[%clk 0:02:05.8]} 20. Qb1 {[%clk 0:02:18.8]} 20... Qb6 {[%clk
0:01:46]} 21. h3 {[%clk 0:02:14.6]} 21... e5 {[%clk 0:01:36.9]} 22. Rf3 {[%clk
0:02:08.2]} 22... exd4 {[%clk 0:01:35.5]} 23. Bxd4 {[%clk 0:02:06.5]} 23... Bc5
{[%clk 0:01:36]} 24. Bxc5 {[%clk 0:02:05]} 24... Qxc5+ {[%clk 0:01:35.2]} 25.
Kh1 {[%clk 0:02:05.6]} 25... Qe5 {[%clk 0:01:30.4]} 26. Re1 {[%clk 0:01:57.2]}
26... Rc7 {[%clk 0:01:19.4]} 27. Qd3 {[%clk 0:01:56.5]} 27... Rfc8 {[%clk
0:01:17.2]} 28. Ref1 {[%clk 0:01:56.8]} 28... Rc3 {[%clk 0:01:11.9]} 29. Qa6
{[%clk 0:01:53.6]} 29... R8c7 {[%clk 0:01:06.1]} 30. Rxc3 {[%clk 0:01:41]} 30...
Qxc3 {[%clk 0:01:05.1]} 31. Qd6 {[%clk 0:01:36.6]} 31... Qc5 {[%clk 0:01:01.1]}
32. Qd8+ {[%clk 0:01:15.1]} 32... Kh7 {[%clk 0:01:00.3]} 33. Re1 {[%clk
0:01:03.6]} 33... Qe5 {[%clk 0:00:56.9]} 34. Qd3 {[%clk 0:00:58.7]} 34... Rc3
{[%clk 0:00:53.9]} 35. Qe2 {[%clk 0:00:58.8]} 35... Nh5 {[%clk 0:00:52.1]} 36.
Qf2 {[%clk 0:00:57.8]} 36... Nf6 {[%clk 0:00:48.9]} 37. Bxf7 {[%clk 0:00:57]}
37... Nxe4 {[%clk 0:00:39.8]} 38. Qh4+ {[%clk 0:00:55.8]} 38... Qh5 {[%clk
0:00:34.4]} 39. Qxh5+ {[%clk 0:00:56.2]} 39... gxh5 {[%clk 0:00:34.5]} 40. Rxe4
{[%clk 0:00:56.8]} 40... Kh6 {[%clk 0:00:24.5]} 41. h4 {[%clk 0:00:54.8]} 41...
Rc6 {[%clk 0:00:22.6]} 42. Re6+ {[%clk 0:00:51.3]} 42... Rxe6 {[%clk 0:00:21.6]}
43. Bxe6 {[%clk 0:00:52.2]} 43... Kg6 {[%clk 0:00:22.2]} 44. Kh2 {[%clk
0:00:51.4]} 44... Kf6 {[%clk 0:00:22.4]} 45. Bb3 {[%clk 0:00:51.5]} 45... g5
{[%clk 0:00:21.6]} 46. Kg3 {[%clk 0:00:51.6]} 46... gxh4+ {[%clk 0:00:20]} 47.
Kxh4 {[%clk 0:00:52.5]} 47... Kg6 {[%clk 0:00:20.7]} 48. Bd1 {[%clk 0:00:52.4]}
48... Kh6 {[%clk 0:00:20.5]} 49. Bxh5 {[%clk 0:00:53.3]} 49... a5 {[%clk
0:00:20.9]} 50. g4 {[%clk 0:00:53.5]} 50... a4 {[%clk 0:00:20.6]} 51. g5+ {[%clk
0:00:54.4]} 51... Kg7 {[%clk 0:00:20.4]} 52. a3 {[%clk 0:00:55.3]} 1-0

[Event "Late-Titled-Tuesday-Blitz-September-19-2023"]
[Site "Chess.com"]
[Date "2023.09.19"]
[Round "3"]
[White "MathiasWomacka"]
[Black "PapaieDudu"]
[Result "1-0"]
[WhiteElo "2560"]
[BlackElo "2376"]
[TimeControl "180+1"]
[EndTime "14:26:29 PDT"]
[Termination "MathiasWomacka won by resignation"]

1. e4 {[%clk 0:03:00.9]} 1... c5 {[%clk 0:03:00.1]} 2. Nf3 {[%clk 0:03:00.6]}
2... d6 {[%clk 0:03:00.4]} 3. d4 {[%clk 0:03:01]} 3... cxd4 {[%clk 0:03:01.3]}
4. Nxd4 {[%clk 0:03:01]} 4... Nf6 {[%clk 0:03:01.9]} 5. Nc3 {[%clk 0:03:01.2]}
5... a6 {[%clk 0:03:02.3]} 6. Be2 {[%clk 0:03:00.7]} 6... e6 {[%clk 0:03:02.1]}
7. O-O {[%clk 0:02:59.7]} 7... Be7 {[%clk 0:03:01.7]} 8. f4 {[%clk 0:02:59.9]}
8... Nbd7 {[%clk 0:03:01.3]} 9. Bf3 {[%clk 0:02:56.6]} 9... O-O {[%clk 0:03:00]}
10. Kh1 {[%clk 0:02:56]} 10... Qc7 {[%clk 0:02:59.4]} 11. Qe1 {[%clk 0:02:55.8]}
11... Rb8 {[%clk 0:02:54]} 12. Qg3 {[%clk 0:02:55.1]} 12... Rd8 {[%clk
0:02:50.7]} 13. Bd2 {[%clk 0:02:30]} 13... b5 {[%clk 0:02:48.3]} 14. e5 {[%clk
0:02:25.7]} 14... dxe5 {[%clk 0:02:36.5]} 15. Nc6 {[%clk 0:02:25.5]} 15... exf4
{[%clk 0:02:31.6]} 16. Bxf4 {[%clk 0:02:19.5]} 16... e5 {[%clk 0:02:29.2]} 17.
Nxe7+ {[%clk 0:02:18.6]} 17... Kf8 {[%clk 0:02:29.9]} 18. Bg5 {[%clk 0:02:13.3]}
18... Nb6 {[%clk 0:01:49.1]} 19. Nc6 {[%clk 0:01:58.7]} 19... Be6 {[%clk
0:01:43]} 20. Bxf6 {[%clk 0:01:51.1]} 20... gxf6 {[%clk 0:01:42.9]} 21. Nxb8
{[%clk 0:01:50]} 21... Rxb8 {[%clk 0:01:43.8]} 22. Be4 {[%clk 0:01:45.1]} 22...
Ke7 {[%clk 0:01:41.3]} 23. Qh4 {[%clk 0:01:43.8]} 23... Nd7 {[%clk 0:01:38]} 24.
Rad1 {[%clk 0:01:33.9]} 24... Rg8 {[%clk 0:01:14.7]} 25. Nd5+ {[%clk 0:01:27]}
25... Bxd5 {[%clk 0:01:14.4]} 26. Rxd5 {[%clk 0:01:27.7]} 26... Rg5 {[%clk
0:01:12.4]} 27. Qf2 {[%clk 0:01:19.8]} 27... f5 {[%clk 0:00:53.4]} 28. Bxf5
{[%clk 0:01:15.8]} 28... Nf6 {[%clk 0:00:52.9]} 29. Qc5+ {[%clk 0:01:05.1]}
29... Qxc5 {[%clk 0:00:52.3]} 30. Rxc5 {[%clk 0:01:06]} 30... Kd6 {[%clk
0:00:49.4]} 31. Rc8 {[%clk 0:01:05.8]} 31... e4 {[%clk 0:00:49.6]} 32. g4 {[%clk
0:01:00.5]} 32... Ke5 {[%clk 0:00:42.8]} 33. Kg2 {[%clk 0:00:46.5]} 33... h5
{[%clk 0:00:36.5]} 34. h3 {[%clk 0:00:45.7]} 34... hxg4 {[%clk 0:00:32.5]} 35.
hxg4 {[%clk 0:00:46.6]} 35... e3 {[%clk 0:00:29.6]} 36. Kf3 {[%clk 0:00:44.5]}
36... Nd5 {[%clk 0:00:27.2]} 37. Rd1 {[%clk 0:00:37.6]} 37... Nf6 {[%clk
0:00:21.3]} 38. Rc5+ {[%clk 0:00:35.6]} 38... Nd5 {[%clk 0:00:20]} 39. Rcxd5+
{[%clk 0:00:35.4]} 39... Kf6 {[%clk 0:00:20.7]} 40. Kxe3 {[%clk 0:00:35.5]}
40... Kg7 {[%clk 0:00:19.4]} 41. Kf4 {[%clk 0:00:35.5]} 1-0